fUST/lending_fUST_20250313
["ID","MTS","AMOUNT","RATE_DAILY","PERIOD"]
[356033209,1741809059280,-500.0,0.00022465,2]
[356033210,1741809059291,-160.0,0.00022465,7]
[356033211,1741809059301,-501.02,0.00022465,2]
[356033212,1741809059311,-7057.65,0.00022465,2]
[356033213,1741809059321,-500.0,0.00022465,2]
[356033214,1741809059330,-500.0,0.00022465,2]
[356033215,1741809059340,-500.0,0.00022465,2]
[356033216,1741809059350,-722.09,0.00022465,2]
[356033217,1741809059360,-500.0,0.00022465,2]
[356033218,1741809059370,-1385.76,0.00022465,2]
[356033219,1741809059380,-1243.39,0.00022465,2]
[356033220,1741809059390,-484.49440179,0.00022465,2]
[356033221,1741809059399,-1145.86,0.00022465,2]
[356033222,1741809059409,-1411.1,0.00022465,2]
[356033223,1741809059419,-500.0,0.00022465,2]
[356033224,1741809059428,-355.54030018,0.00022465,2]
[356033225,1741809059438,-500.0,0.00022465,2]
[356033226,1741809059448,-500.0,0.00022465,2]
[356033227,1741809059458,-292.490374,0.00022465,7]
[356033228,1741809059468,-292.490374,0.00022465,7]
[356033229,1741809059477,-292.490374,0.00022465,7]
[356033230,1741809059487,-500.0,0.00022465,2]
[356033231,1741809059498,-634.96,0.00022465,2]
[356033232,1741809059508,-500.0,0.00022465,2]
[356033233,1741809059518,-500.0,0.00022465,2]
[356033234,1741809059528,-4633.170085,0.00022465,7]
[356033235,1741809059539,-4633.170085,0.00022465,7]
[356033236,1741809059549,-4633.170085,0.00022465,7]
[356033237,1741809059559,-292.490374,0.00022465,7]
[356033238,1741809059568,-292.490374,0.00022465,7]
[356033239,1741809059578,-292.490374,0.00022465,7]
[356033240,1741809059588,-4633.170085,0.00022465,7]
[356033241,1741809059597,-500.0,0.00022465,2]
[356033242,1741809059607,-4633.170085,0.00022465,7]
[356033243,1741809059618,-500.0,0.00022465,2]
[356033244,1741809059628,-4633.170085,0.00022465,7]
[356033245,1741809059637,-434.81598272,0.00022465,2]
[356033246,1741809059647,-4862.11,0.00022465,2]
[356033247,1741809059658,-166.9256084,0.00022465,2]
[356033248,1741809059668,-500.0,0.00022465,2]
[356033249,1741809059679,-2290.97,0.00022465,2]
[356033250,1741809059690,-465.28335422,0.00022465,2]
[356033251,1741809059700,-507.56381159,0.00022465,2]
[356033252,1741809059711,-3071.24,0.00022465,2]
[356033253,1741809059720,-500.0,0.00022465,2]
[356033254,1741809059731,-500.0,0.00022465,2]
[356033255,1741809059740,-504.22299383,0.00022465,2]
[356033256,1741809059750,-500.0,0.00022465,2]
[356033257,1741809059760,-500.0,0.00022465,2]
[356033258,1741809059771,-151.0,0.00022465,7]
[356033259,1741809059781,-151.0,0.00022465,7]
[356033260,1741809059791,-151.0,0.00022465,7]
[356033261,1741809059981,-845.05,0.00022465,2]
[356033262,1741809059990,-500.0,0.00022465,2]
[356033263,1741809060000,-151.0,0.00022465,7]
[356033264,1741809060009,-151.0,0.00022465,7]
[356033265,1741809060018,-151.0,0.00022465,7]
[356033266,1741809060027,-3283.98,0.00022465,2]
[356033267,1741809060037,-500.0,0.00022465,2]
[356033268,1741809060046,-500.0,0.00022465,2]
[356033269,1741809060056,-500.0,0.00022465,2]
[356033270,1741809060066,-500.0,0.00022465,2]
[356033271,1741809060078,-500.0,0.00022465,2]
[356033272,1741809060088,-5064.97,0.00022465,2]
[356033273,1741809060097,-393.0,0.00022466,2]
[356033274,1741809060106,-1500.0,0.000225,4]
[356033275,1741809060116,-2453.80943758,0.0002253,2]
[356033276,1741809060125,-2364.75028431,0.00022659,3]
[356033277,1741809060134,-626.0,0.000227,2]
[356033278,1741809060144,-611.56,0.00022739,2]
[356033279,1741809060153,-500.0,0.00022739,2]
[356033280,1741809060163,-602.70359025,0.00022739,2]
[356033281,1741809060173,-500.0,0.00022739,2]
[356033282,1741809060182,-571.78,0.00022739,2]
[356033283,1741809060192,-823.03,0.00022739,2]
[356033284,1741809060201,-500.0,0.00022739,2]
[356033285,1741809060212,-500.0,0.00022739,2]
[356033286,1741809060222,-500.0,0.00022739,2]
[356033287,1741809060231,-889.88,0.00022739,2]
[356033288,1741809060240,-500.0,0.00022739,2]
[356033289,1741809060250,-305.477752,0.00022739,2]
[356033290,1741809060259,-1004.54,0.00022739,2]
[356033291,1741809060268,-625.79,0.00022739,2]
[356033292,1741809060278,-500.0,0.00022739,2]
[356033293,1741809060287,-500.0,0.00022739,2]
[356033294,1741809060296,-500.0,0.00022739,5]
[356033295,1741809060305,-500.0,0.00022739,2]
[356033296,1741809060315,-500.0,0.00022739,2]
[356033297,1741809060323,-500.0,0.00022739,2]
[356033298,1741809060333,-335.04563205,0.00022739,2]
[356033299,1741809060342,-500.0,0.00022739,2]
[356033300,1741809060351,-500.0,0.00022739,2]
[356033301,1741809060360,-500.0,0.00022739,2]
[356033302,1741809060369,-162.389569,0.00022739,7]
[356033303,1741809060378,-162.389569,0.00022739,7]
[356033304,1741809060387,-162.389569,0.00022739,7]
[356033305,1741809060397,-162.389569,0.00022739,7]
[356033306,1741809060410,-500.0,0.00022739,2]
[356033307,1741809060419,-500.0,0.00022739,2]
[356033308,1741809060428,-500.0,0.00022739,2]
[356033309,1741809060437,-151.0,0.00022739,7]
[356033310,1741809060446,-151.0,0.00022739,7]
[356033311,1741809060454,-151.0,0.00022739,7]
[356033312,1741809060464,-151.0,0.00022739,7]
[356033313,1741809060473,-151.0,0.00022739,7]
[356033314,1741809060482,-500.0,0.00022739,2]
[356033315,1741809060491,-500.0,0.00022739,2]
[356033316,1741809060500,-500.0,0.00022739,2]
[356033317,1741809060510,-500.0,0.00022739,2]
[356033318,1741809060519,-151.0,0.00022739,7]
[356033319,1741809060529,-151.0,0.00022739,7]
[356033320,1741809060538,-500.0,0.00022739,2]
[356033321,1741809060547,-315.45195104,0.00022739,2]
[356033322,1741809060557,-500.0,0.00022739,2]
[356033323,1741809060566,-502.96139612,0.00022739,2]
[356033324,1741809060575,-500.0,0.00022739,2]
[356033325,1741809060584,-500.0,0.00022739,2]
[356033326,1741809060594,-500.0,0.00022739,2]
[356033327,1741809060603,-500.0,0.00022739,2]
[356033328,1741809060613,-579.28231291,0.00022739,2]
[356033329,1741809060622,-929.88,0.00022739,2]
[356033330,1741809060632,-860.93,0.00022739,2]
[356033331,1741809060641,-151.0,0.00022739,7]
[356033332,1741809060651,-151.0,0.00022739,7]
[356033333,1741809060660,-500.0,0.00022739,2]
[356033334,1741809060670,-151.0,0.00022739,7]
[356033335,1741809060679,-151.0,0.00022739,7]
[356033336,1741809060689,-514.1,0.00022739,2]
[356033337,1741809060698,-500.0,0.00022739,2]
[356033338,1741809060707,-687.2,0.00022739,2]
[356033339,1741809060717,-500.0,0.00022739,2]
[356033340,1741809060727,-500.0,0.00022739,2]
[356033341,1741809060736,-500.0,0.00022739,2]
[356033342,1741809060746,-500.0,0.00022739,2]
[356033343,1741809060755,-500.0,0.00022739,2]
[356033344,1741809060765,-500.0,0.00022739,2]
[356033345,1741809060774,-500.0,0.00022739,2]
[356033346,1741809060785,-946.27,0.00022739,2]
[356033347,1741809060795,-500.0,0.00022739,2]
[356033348,1741809060804,-500.0,0.00022739,2]
[356033349,1741809060813,-500.0,0.00022739,2]
[356033350,1741809060822,-500.0,0.00022739,2]
[356033351,1741809060831,-500.0,0.00022739,2]
[356033352,1741809060841,-151.0,0.00022739,7]
[356033353,1741809060851,-151.0,0.00022739,7]
[356033354,1741809060860,-541.07370016,0.00022739,2]
[356033355,1741809060869,-500.0,0.00022739,2]
[356033356,1741809060879,-500.0,0.00022739,2]
[356033357,1741809060888,-151.0,0.00022739,7]
[356033358,1741809060898,-151.0,0.00022739,7]
[356033359,1741809060908,-500.0,0.00022739,2]
[356033360,1741809060918,-500.0,0.00022739,2]
[356033361,1741809060928,-885.6,0.00022739,2]
[356033362,1741809060937,-500.0,0.00022739,2]
[356033363,1741809060947,-500.0,0.00022739,2]
[356033364,1741809060956,-500.0,0.00022739,2]
[356033365,1741809060967,-500.0,0.00022739,2]
[356033366,1741809060977,-509.3358538,0.00022739,2]
[356033367,1741809060987,-151.0,0.00022739,7]
[356033368,1741809060996,-151.0,0.00022739,7]
[356033369,1741809061006,-500.0,0.00022739,2]
[356033370,1741809061015,-500.0,0.00022739,2]
[356033371,1741809061025,-500.0,0.00022739,2]
[356033372,1741809061034,-598.68595098,0.00022739,2]
[356033373,1741809061044,-500.0,0.00022739,2]
[356033374,1741809061053,-500.0,0.00022739,2]
[356033375,1741809061063,-1433.96,0.00022739,2]
[356033376,1741809061075,-500.0,0.00022739,2]
[356033377,1741809061085,-500.0,0.00022739,2]
[356033378,1741809061094,-500.0,0.00022739,2]
[356033379,1741809061104,-500.0,0.00022739,2]
[356033380,1741809061114,-500.0,0.00022739,2]
[356033381,1741809061124,-500.0,0.00022739,2]
[356033382,1741809061133,-274.44098617,0.00022739,2]
[356033383,1741809061143,-949.84,0.00022739,2]
[356033384,1741809061153,-500.0,0.00022739,2]
[356033385,1741809061164,-500.0,0.00022739,2]
[356033386,1741809061174,-861.29,0.00022739,2]
[356033387,1741809061184,-517.64,0.00022739,2]
[356033388,1741809061195,-500.0,0.00022739,2]
[356033389,1741809061205,-500.0,0.00022739,2]
[356033390,1741809061216,-500.0,0.00022739,2]
[356033391,1741809061226,-955.96,0.00022739,2]
[356033392,1741809061235,-502.29,0.00022739,2]
[356033393,1741809061244,-514.87,0.00022739,2]
[356033394,1741809061254,-2854.903074,0.00022739,7]
[356033395,1741809061264,-2854.903074,0.00022739,7]
[356033396,1741809061273,-2854.903074,0.00022739,7]
[356033397,1741809061283,-2854.903074,0.00022739,7]
[356033398,1741809061292,-842.43,0.00022739,2]
[356033399,1741809061302,-511.27720669,0.00022739,2]
[356033400,1741809061311,-500.0,0.00022739,2]
[356033401,1741809061320,-500.0,0.00022739,2]
[356033402,1741809061329,-500.0,0.00022739,2]
[356033403,1741809061339,-151.0,0.00022739,7]
[356033404,1741809061348,-151.0,0.00022739,7]
[356033405,1741809061358,-500.0,0.00022739,2]
[356033406,1741809061367,-500.0,0.00022739,2]
[356033407,1741809061376,-151.0,0.00022739,7]
[356033408,1741809061386,-274.447964,0.00022739,7]
[356033409,1741809061395,-500.0,0.00022739,2]
[356033410,1741809061404,-500.0,0.00022739,2]
[356033411,1741809061413,-500.0,0.00022739,2]
[356033412,1741809061422,-500.0,0.00022739,2]
[356033413,1741809061431,-1009.18,0.00022739,2]
[356033414,1741809061441,-500.0,0.00022739,2]
[356033415,1741809061451,-717.98336,0.00022739,7]
[356033416,1741809061461,-500.0,0.00022739,2]
[356033417,1741809061470,-717.98336,0.00022739,7]
[356033418,1741809061479,-582.30362288,0.00022739,2]
[356033419,1741809061488,-500.0,0.00022739,2]
[356033420,1741809061497,-151.0,0.00022739,7]
[356033421,1741809061506,-151.0,0.00022739,7]
[356033422,1741809061516,-220.089596,0.00022739,7]
[356033423,1741809061525,-220.089596,0.00022739,7]
[356033424,1741809061536,-500.0,0.00022739,2]
[356033425,1741809061546,-220.089596,0.00022739,7]
[356033426,1741809061556,-220.089596,0.00022739,7]
[356033427,1741809061566,-500.0,0.00022739,2]
[356033428,1741809061576,-151.0,0.00022739,7]
[356033429,1741809061587,-151.0,0.00022739,7]
[356033430,1741809061596,-500.0,0.00022739,2]
[356033431,1741809061606,-500.0,0.00022739,2]
[356033432,1741809061616,-500.0,0.00022739,2]
[356033433,1741809061626,-500.0,0.00022739,2]
[356033434,1741809061636,-546.06,0.00022739,2]
[356033435,1741809061646,-151.0,0.00022739,7]
[356033436,1741809061656,-151.0,0.00022739,7]
[356033437,1741809061666,-495.89108934,0.00022739,2]
[356033438,1741809061676,-500.0,0.00022739,2]
[356033439,1741809061686,-500.0,0.00022739,2]
[356033440,1741809061695,-1653.56,0.00022739,2]
[356033441,1741809061705,-1051.09,0.00022739,2]
[356033442,1741809061720,-500.0,0.00022739,2]
[356033443,1741809061730,-1703.6,0.00022739,2]
[356033444,1741809061739,-500.0,0.00022739,2]
[356033445,1741809061749,-500.0,0.00022739,2]
[356033446,1741809061759,-151.0,0.00022739,7]
[356033447,1741809061769,-151.0,0.00022739,7]
[356033448,1741809061779,-151.0,0.00022739,7]
[356033449,1741809061789,-1047.52,0.00022739,2]
[356033450,1741809061798,-500.0,0.00022739,2]
[356033451,1741809061807,-500.0,0.00022739,2]
[356033452,1741809061818,-500.0,0.00022739,2]
[356033453,1741809061829,-500.0,0.00022739,2]
[356033454,1741809061839,-500.0,0.00022739,2]
[356033455,1741809061850,-500.0,0.00022739,2]
[356033456,1741809061859,-1574.66,0.00022739,2]
[356033457,1741809061869,-500.0,0.00022739,2]
[356033458,1741809061878,-500.0,0.00022739,2]
[356033459,1741809061887,-537.0,0.00022739,2]
[356033460,1741809061896,-500.0,0.00022739,2]
[356033461,1741809061905,-1769.55,0.00022739,2]
[356033462,1741809061915,-523.24,0.00022739,2]
[356033463,1741809061924,-565.80402665,0.00022739,2]
[356033464,1741809061934,-480.79818862,0.00022739,2]
[356033465,1741809061942,-746.4,0.00022739,2]
[356033466,1741809061951,-151.0,0.00022739,7]
[356033467,1741809061960,-1191.99,0.00022739,2]
[356033468,1741809061970,-500.0,0.00022739,2]
[356033469,1741809061979,-2156.11,0.00022739,2]
[356033470,1741809061989,-500.0,0.00022739,2]
[356033471,1741809061998,-500.0,0.00022739,2]
[356033472,1741809062008,-12973.82,0.00022739,2]
[356033473,1741809062017,-500.0,0.00022739,2]
[356033474,1741809062027,-500.0,0.00022739,2]
[356033475,1741809062036,-500.0,0.00022739,2]
[356033476,1741809062046,-647.85181414,0.00022739,2]
[356033477,1741809062056,-500.0,0.00022739,2]
[356033478,1741809062065,-4661.14,0.00022739,2]
[356033479,1741809062075,-500.0,0.00022739,2]
[356033480,1741809062086,-500.0,0.00022739,2]
[356033481,1741809062095,-500.0,0.00022739,2]
[356033482,1741809062104,-500.0,0.00022739,2]
[356033483,1741809062114,-500.0,0.00022739,2]
[356033484,1741809062124,-500.0,0.00022739,2]
[356033485,1741809062134,-181.977683,0.00022739,7]
[356033486,1741809062144,-500.0,0.00022739,2]
[356033487,1741809062155,-500.0,0.00022739,2]
[356033488,1741809062164,-514.86,0.00022739,2]
[356033489,1741809062173,-181.977683,0.00022739,7]
[356033490,1741809062182,-500.0,0.00022739,2]
[356033491,1741809062192,-957.96,0.00022739,2]
[356033492,1741809062201,-500.0,0.00022739,2]
[356033493,1741809062212,-1050.365468,0.00022739,7]
[356033494,1741809062221,-7479.31,0.00022739,2]
[356033495,1741809062231,-205.416516,0.00022739,7]
[356033496,1741809062241,-775.01,0.00022739,2]
[356033497,1741809062250,-500.0,0.00022739,2]
[356033498,1741809062411,-1050.365468,0.00022739,7]
[356033499,1741809062421,-500.0,0.00022739,2]
[356033500,1741809062431,-500.0,0.00022739,2]
[356033501,1741809062440,-546.23,0.00022739,2]
[356033502,1741809062450,-828.39,0.00022739,2]
[356033503,1741809062461,-500.0,0.00022739,2]
[356033504,1741809062470,-4805.33,0.00022739,2]
[356033505,1741809062479,-607.2,0.00022739,2]
[356033506,1741809062488,-3238.74,0.00022739,2]
[356033507,1741809062497,-500.0,0.00022739,2]
[356033508,1741809062507,-500.0,0.00022739,2]
[356033509,1741809062516,-1542.79,0.00022739,2]
[356033510,1741809062525,-500.0,0.00022739,2]
[356033511,1741809062534,-500.0,0.00022739,2]
[356033512,1741809062543,-500.0,0.00022739,2]
[356033513,1741809062553,-1463.89,0.00022739,2]
[356033514,1741809062563,-2697.44,0.00022739,2]
[356033515,1741809062573,-1731.81,0.00022739,2]
[356033516,1741809062582,-500.0,0.00022739,2]
[356033517,1741809062592,-500.0,0.00022739,2]
[356033518,1741809062602,-659.73,0.00022739,2]
[356033519,1741809062611,-4017.16,0.00022739,2]
[356033520,1741809062620,-500.0,0.00022739,2]
[356033521,1741809062630,-707.42,0.00022739,2]
[356033522,1741809062639,-500.0,0.00022739,2]
[356033523,1741809062648,-2056.84,0.00022739,2]
[356033524,1741809062658,-639.26717078,0.00022739,2]
[356033525,1741809062667,-500.0,0.00022739,2]
[356033526,1741809062677,-831.29,0.00022739,2]
[356033527,1741809062686,-500.0,0.00022739,2]
[356033528,1741809062697,-500.0,0.00022739,2]
[356033529,1741809062706,-1675.01,0.00022739,2]
[356033530,1741809062717,-2757.77,0.00022739,2]
[356033531,1741809062726,-500.0,0.00022739,2]
[356033532,1741809062735,-500.0,0.00022739,2]
[356033533,1741809062744,-536.39463067,0.00022739,2]
[356033534,1741809062754,-2794.14,0.00022739,2]
[356033535,1741809062763,-542.49,0.00022739,2]
[356033536,1741809062773,-500.0,0.00022739,2]
[356033537,1741809062783,-831.75,0.00022739,2]
[356033538,1741809062792,-151.0,0.00022739,7]
[356033539,1741809062802,-151.0,0.00022739,7]
[356033540,1741809062812,-673.09,0.00022739,2]
[356033541,1741809062821,-500.0,0.00022739,2]
[356033542,1741809062830,-599.96821378,0.00022739,2]
[356033543,1741809062839,-584.68,0.00022739,2]
[356033544,1741809062849,-1065.45,0.00022739,2]
[356033545,1741809062858,-582.43,0.00022739,2]
[356033546,1741809062867,-3082.95,0.00022739,2]
[356033547,1741809062876,-151.0,0.00022739,7]
[356033548,1741809062885,-500.0,0.00022739,2]
[356033549,1741809062895,-17841.71,0.00022739,2]
[356033550,1741809062904,-500.0,0.00022739,2]
[356033551,1741809062913,-500.0,0.00022739,2]
[356033552,1741809062922,-500.0,0.00022739,2]
[356033553,1741809062931,-1307.9,0.00022739,2]
[356033554,1741809062940,-500.0,0.00022739,2]
[356033555,1741809062949,-500.0,0.00022739,2]
[356033556,1741809062959,-500.0,0.00022739,2]
[356033557,1741809062969,-500.0,0.00022739,2]
[356033558,1741809062978,-2321.42,0.00022739,2]
[356033559,1741809062987,-500.0,0.00022739,2]
[356033560,1741809062997,-591.64,0.00022739,2]
[356033561,1741809063007,-60698.39,0.00022739,2]
[356033562,1741809063016,-500.0,0.00022739,2]
[356033563,1741809063026,-500.0,0.00022739,2]
[356033564,1741809063036,-500.0,0.00022739,2]
[356033565,1741809063046,-500.0,0.00022739,2]
[356033566,1741809063056,-500.0,0.00022739,2]
[356033567,1741809063067,-500.0,0.00022739,2]
[356033568,1741809063081,-247.74631659,0.00022739,2]
[356033569,1741809063090,-697.84,0.00022739,2]
[356033570,1741809063100,-847.83,0.00022739,2]
[356033571,1741809063110,-500.0,0.00022739,2]
[356033572,1741809063123,-388.013246,0.00022739,7]
[356033573,1741809063134,-388.013246,0.00022739,7]
[356033574,1741809063144,-500.0,0.00022739,2]
[356033575,1741809063153,-388.013246,0.00022739,7]
[356033576,1741809063164,-388.013246,0.00022739,7]
[356033577,1741809063174,-200.0,0.00022739,2]
[356033578,1741809063184,-2676.65,0.00022739,2]
[356033579,1741809063193,-2327.8,0.00022739,2]
[356033580,1741809063203,-500.0,0.00022739,2]
[356033581,1741809063213,-500.0,0.00022739,2]
[356033582,1741809063222,-737.21,0.00022739,2]
[356033583,1741809063232,-500.0,0.00022739,2]
[356033584,1741809063241,-7409.68,0.00022739,2]
[356033585,1741809063252,-500.0,0.00022739,2]
[356033586,1741809063262,-220.152077,0.00022739,7]
[356033587,1741809063272,-329.453428,0.00022739,7]
[356033588,1741809063282,-220.152077,0.00022739,7]
[356033589,1741809063292,-500.0,0.00022739,2]
[356033590,1741809063302,-329.453428,0.00022739,7]
[356033591,1741809063312,-1000.0,0.00022739,7]
[356033592,1741809063322,-593.0627324,0.00022739,2]
[356033593,1741809063333,-1167.95,0.00022739,2]
[356033594,1741809063343,-778.01,0.00022739,2]
[356033595,1741809063356,-220.152077,0.00022739,7]
[356033596,1741809063365,-220.152077,0.00022739,7]
[356033597,1741809063375,-500.0,0.00022739,2]
[356033598,1741809063385,-500.0,0.00022739,2]
[356033599,1741809063394,-329.453428,0.00022739,7]
[356033600,1741809063404,-329.453428,0.00022739,7]
[356033601,1741809063413,-217.27264363,0.00022739,2]
[356033602,1741809063423,-500.0,0.00022739,2]
[356033603,1741809063432,-500.0,0.00022739,2]
[356033604,1741809063442,-986.1,0.00022739,2]
[356033605,1741809063452,-1084.33,0.00022739,2]
[356033606,1741809063462,-500.0,0.00022739,2]
[356033607,1741809063472,-500.0,0.00022739,2]
[356033608,1741809063481,-540.60914616,0.00022739,2]
[356033609,1741809063490,-5963.29,0.00022739,2]
[356033610,1741809063500,-432.93302698,0.00022739,2]
[356033611,1741809063510,-11334.24,0.00022739,2]
[356033612,1741809063521,-3477.78,0.00022739,2]
[356033613,1741809063531,-500.0,0.00022739,2]
[356033614,1741809063541,-500.0,0.00022739,2]
[356033615,1741809063551,-500.0,0.00022739,2]
[356033616,1741809063561,-353.751824,0.00022739,7]
[356033617,1741809063571,-500.0,0.00022739,2]
[356033618,1741809063581,-353.751824,0.00022739,7]
[356033619,1741809063591,-500.0,0.00022739,2]
[356033620,1741809063600,-500.0,0.00022739,2]
[356033621,1741809063610,-500.0,0.00022739,2]
[356033622,1741809063619,-2040.4,0.00022739,2]
[356033623,1741809063628,-353.751824,0.00022739,7]
[356033624,1741809063638,-500.0,0.00022739,2]
[356033625,1741809063648,-353.751824,0.00022739,7]
[356033626,1741809063658,-968.41,0.00022739,2]
[356033627,1741809063668,-151.0,0.00022739,7]
[356033628,1741809063677,-500.0,0.00022739,2]
[356033629,1741809063687,-500.0,0.00022739,2]
[356033630,1741809063696,-500.0,0.00022739,2]
[356033631,1741809063706,-1660.26,0.00022739,2]
[356033632,1741809063715,-918.0,0.00022739,2]
[356033633,1741809063725,-504.72440878,0.00022739,2]
[356033634,1741809063734,-1340.29,0.00022739,2]
[356033635,1741809063744,-4605.81,0.00022739,2]
[356033636,1741809063754,-500.0,0.00022739,2]
[356033637,1741809063764,-2234.82,0.00022739,2]
[356033638,1741809063773,-501.02,0.00022739,2]
[356033639,1741809063783,-7057.65,0.00022739,2]
[356033640,1741809063793,-500.0,0.00022739,2]
[356033641,1741809063802,-500.0,0.00022739,2]
[356033642,1741809063811,-500.0,0.00022739,2]
[356033643,1741809063820,-722.09,0.00022739,2]
[356033644,1741809063829,-500.0,0.00022739,2]
[356033645,1741809063838,-1385.76,0.00022739,2]
[356033646,1741809063847,-1243.39,0.00022739,2]
[356033647,1741809063857,-1145.86,0.00022739,2]
[356033648,1741809063867,-1411.1,0.00022739,2]
[356033649,1741809063877,-500.0,0.00022739,2]
[356033650,1741809063887,-500.0,0.00022739,2]
[356033651,1741809063897,-500.0,0.00022739,2]
[356033652,1741809063907,-292.490374,0.00022739,7]
[356033653,1741809063916,-292.490374,0.00022739,7]
[356033654,1741809063925,-634.96,0.00022739,2]
[356033655,1741809063936,-500.0,0.00022739,2]
[356033656,1741809063946,-500.0,0.00022739,2]
[356033657,1741809063956,-4633.170085,0.00022739,7]
[356033658,1741809063966,-292.490374,0.00022739,7]
[356033659,1741809063976,-292.490374,0.00022739,7]
[356033660,1741809063986,-500.0,0.00022739,2]
[356033661,1741809063996,-4633.170085,0.00022739,7]
[356033662,1741809064006,-4862.11,0.00022739,2]
[356033663,1741809064016,-500.0,0.00022739,2]
[356033664,1741809064026,-2290.97,0.00022739,2]
[356033665,1741809064035,-3071.24,0.00022739,2]
[356033666,1741809064044,-500.0,0.00022739,2]
[356033667,1741809064054,-500.0,0.00022739,2]
[356033668,1741809064064,-151.0,0.00022739,7]
[356033669,1741809064075,-151.0,0.00022739,7]
[356033670,1741809064087,-845.05,0.00022739,2]
[356033671,1741809064096,-500.0,0.00022739,2]
[356033672,1741809064105,-287.21968,0.00022739,7]
[356033673,1741809064116,-3283.98,0.00022739,2]
[356033674,1741809064127,-500.0,0.00022739,2]
[356033675,1741809064137,-500.0,0.00022739,2]
[356033676,1741809064147,-500.0,0.00022739,2]
[356033677,1741809064158,-5064.97,0.00022739,2]
[356033678,1741809064168,-393.0,0.0002274,2]
[356033679,1741809064178,-500.0,0.00022773,2]
[356033680,1741809064188,-277.43519169,0.00022773,2]
[356033681,1741809064202,-151.0,0.00022796,7]
[356033682,1741809064213,-151.0,0.00022796,7]
[356033683,1741809064228,-181.977683,0.00022796,7]
[356033684,1741809064242,-181.977683,0.00022796,7]
[356033685,1741809064251,-1050.365468,0.00022796,7]
[356033686,1741809064261,-1050.365468,0.00022796,7]
[356033687,1741809064271,-206.815074,0.00022796,7]
[356033688,1741809064281,-151.0,0.00022796,7]
[356033689,1741809064291,-4633.170085,0.00022796,7]
[356033690,1741809064300,-4633.170085,0.00022796,7]
[356033691,1741809064310,-353.0,0.0002283,3]
[356033692,1741809064320,-403.47516316,0.0002283,3]
[356033693,1741809064330,-344.65694257,0.0002283,3]
[356033694,1741809064340,-3178.942,0.000229,2]
[356033695,1741809064350,-1918.0,0.00022986,2]
[356033696,1741809064359,-540.0,0.00022986,2]
[356033697,1741809064368,-2272.0,0.00022986,2]
[356033698,1741809064378,-398.0,0.00022986,2]
[356033699,1741809064388,-1000.0,0.00023,4]
[356033700,1741809064398,-162.502444,0.00023013,7]
[356033701,1741809064408,-162.502444,0.00023013,7]
[356033702,1741809064418,-611.56,0.00023013,2]
[356033703,1741809064428,-500.0,0.00023013,2]
[356033704,1741809064438,-571.78,0.00023013,2]
[356033705,1741809064448,-823.03,0.00023013,2]
[356033706,1741809064458,-500.0,0.00023013,2]
[356033707,1741809064468,-500.0,0.00023013,2]
[356033708,1741809064478,-240.39602889,0.00023013,2]